fUST/lending_fUST_20260513
["ID","MTS","AMOUNT","RATE_DAILY","PERIOD"]
[422159329,1778639439000,-921.95,0.00010958,2]
[422159312,1778639439000,-2501.27,0.00010958,2]
[422159335,1778639439000,-1299.07,0.00010958,2]
[422159297,1778639439000,-500.0,0.00010958,2]
[422159266,1778639439000,-500.0,0.00010958,2]
[422159260,1778639439000,-500.0,0.00010958,2]
[422159258,1778639439000,-1560.05,0.00010958,2]
[422159262,1778639439000,-3574.17,0.00010958,2]
[422159264,1778639439000,-500.0,0.00010958,2]
[422159300,1778639439000,-5661.93951364,0.00010958,2]
[422159276,1778639439000,-1644.94,0.00010958,2]
[422159274,1778639439000,-3164.57,0.00010958,2]
[422159280,1778639439000,-602.18,0.00010958,2]
[422159282,1778639439000,-2448.56,0.00010958,2]
[422159272,1778639439000,-500.0,0.00010958,2]
[422159290,1778639439000,-500.0,0.00010958,2]
[422159288,1778639439000,-1565.76,0.00010958,2]
[422159292,1778639439000,-500.0,0.00010958,2]
[422159284,1778639439000,-2348.19,0.00010958,2]
[422159293,1778639439000,-618.2482169,0.00010958,2]
[422159295,1778639439000,-500.0,0.00010958,2]
[422159294,1778639439000,-500.0,0.00010958,2]
[422159296,1778639439000,-1052.94,0.00010958,2]
[422159298,1778639439000,-503.15616507,0.00010958,2]
[422159302,1778639439000,-2043.49048636,0.00010958,2]
[422159286,1778639439000,-842.78,0.00010958,2]
[422159450,1778639440000,-500.0,0.00010958,2]
[422159436,1778639440000,-2116.28,0.00010958,2]
[422159438,1778639440000,-500.0,0.00010958,2]
[422159448,1778639440000,-2056.32,0.00010958,2]
[422159426,1778639440000,-3220.11241497,0.00010958,2]
[422159444,1778639440000,-500.0,0.00010958,2]
[422159440,1778639440000,-500.0,0.00010958,2]
[422159434,1778639440000,-1996.49080611,0.00010958,2]
[422159442,1778639440000,-6136.96,0.00010958,2]
[422159446,1778639440000,-5978.94,0.00010958,2]
[422159452,1778639440000,-500.0,0.00010958,2]
[422159458,1778639440000,-500.0,0.00010958,2]
[422159456,1778639440000,-2549.62,0.00010958,2]
[422159460,1778639440000,-4150.69,0.00010958,2]
[422159470,1778639440000,-3412.39,0.00010958,2]
[422159462,1778639440000,-1539.07,0.00010958,2]
[422159464,1778639440000,-500.0,0.00010958,2]
[422159472,1778639440000,-1706.13,0.00010958,2]
[422159466,1778639440000,-1701.13,0.00010958,2]
[422159468,1778639440000,-980.84,0.00010958,2]
[422159474,1778639440000,-1039.42,0.00010958,2]
[422159476,1778639440000,-1405.76443353,0.00010958,2]
[422159454,1778639440000,-500.0,0.00010958,2]
[422159747,1778639442000,152.0,0.00013995,30]
[422159790,1778639443000,-398.77670356,0.00010739,2]
[422159799,1778639443000,-122.23976174,0.00010739,2]
[422159803,1778639443000,-10138.52491918,0.00010958,2]
[422159805,1778639443000,-4574.14783359,0.00010958,2]
[422159801,1778639443000,-152.0,0.00010842,2]
[422160520,1778639449000,-16902.48709723,0.00010958,2]
[422160479,1778639449000,-388.09089744,0.00010739,2]
[422160481,1778639449000,-7393.20471419,0.00010958,2]
[422161489,1778639486000,151.0,0.00014,30]
[422161493,1778639746000,864.15313489,0.00014,30]
[422161494,1778639757000,152.0,0.00013981,30]
[422161498,1778640157000,152.0,0.00013983,30]
[422161499,1778640158000,152.0,0.00013983,30]
[422161500,1778640173000,9085.6926631,0.00014,30]
[422161550,1778640631000,-449.21531301,9.306e-05,2]
[422161570,1778640631000,-300.0,9.542e-05,2]
[422161560,1778640631000,-4280.00888451,9.306e-05,2]
[422161566,1778640631000,-249.5707,9.494e-05,2]
[422161572,1778640631000,-414.53182312,9.543e-05,2]
[422161568,1778640631000,-300.0,9.542e-05,2]
[422161564,1778640631000,-1200.0,9.494e-05,2]
[422161557,1778640631000,-270.77580248,9.306e-05,2]
[422161562,1778640631000,-5000.0,9.4e-05,2]
[422161574,1778640632000,-3861.93850702,0.00010379,2]
[422161579,1778640632000,-1905.92221814,0.00010379,2]
[422161865,1778640638000,-1769.90320876,0.00010957,2]
[422161711,1778640638000,-500.0,0.00010478,2]
[422161717,1778640638000,-500.0,0.00010478,2]
[422161719,1778640638000,-500.0,0.00010478,2]
[422161715,1778640638000,-466.16764181,0.00010478,2]
[422161721,1778640638000,-500.0,0.00010478,2]
[422161723,1778640638000,-500.0,0.00010478,2]
[422161725,1778640638000,-500.0,0.00010478,2]
[422161727,1778640638000,-500.0,0.00010478,2]
[422161729,1778640638000,-5479.1796357,0.00010479,2]
[422161731,1778640638000,-3746.24925059,0.00010479,2]
[422161744,1778640638000,-151.0,0.00010572,2]
[422161746,1778640638000,-151.0,0.00010572,2]
[422161741,1778640638000,-151.0,0.00010572,2]
[422161742,1778640638000,-151.0,0.00010572,2]
[422161739,1778640638000,-3054.92709968,0.000105,2]
[422161737,1778640638000,-44334.76521175,0.00010479,2]
[422161735,1778640638000,-23655.32990727,0.00010479,2]
[422161748,1778640638000,-151.0,0.00010572,2]
[422161750,1778640638000,-151.0,0.00010572,2]
[422161752,1778640638000,-227.81013767,0.00010572,2]
[422161754,1778640638000,-3054.92709968,0.000106,2]
[422161765,1778640638000,-152.0,0.00010648,7]
[422161767,1778640638000,-152.0,0.00010648,7]
[422161710,1778640638000,-500.0,0.00010478,2]
[422161713,1778640638000,-500.0,0.00010478,2]
[422161707,1778640638000,-500.0,0.00010478,2]
[422161706,1778640638000,-500.0,0.00010478,2]
[422161659,1778640638000,-442.91246977,9.213e-05,2]
[422161671,1778640638000,-500.0,0.00010465,2]
[422161663,1778640638000,-3911.40475218,9.213e-05,2]
[422161669,1778640638000,-500.0,0.00010465,2]
[422161673,1778640638000,-638.47640025,0.00010465,2]
[422161662,1778640638000,-645.68277805,9.213e-05,2]
[422161665,1778640638000,-133933.58174592,0.00010379,2]
[422161667,1778640638000,-169.86349975,0.000104,2]
[422161675,1778640638000,-500.0,0.00010478,2]
[422161676,1778640638000,-500.0,0.00010478,2]
[422161678,1778640638000,-500.0,0.00010478,2]
[422161682,1778640638000,-500.0,0.00010478,2]
[422161684,1778640638000,-500.0,0.00010478,2]
[422161694,1778640638000,-500.0,0.00010478,2]
[422161696,1778640638000,-500.0,0.00010478,2]
[422161680,1778640638000,-500.0,0.00010478,2]
[422161690,1778640638000,-500.0,0.00010478,2]
[422161686,1778640638000,-500.0,0.00010478,2]
[422161688,1778640638000,-500.0,0.00010478,2]
[422161691,1778640638000,-500.0,0.00010478,2]
[422161702,1778640638000,-500.0,0.00010478,2]
[422161700,1778640638000,-500.0,0.00010478,2]
[422161703,1778640638000,-502.59596344,0.00010478,2]
[422161769,1778640638000,-152.0,0.00010651,7]
[422161763,1778640638000,-160.0,0.00010631,2]
[422161698,1778640638000,-500.0,0.00010478,2]
[422161762,1778640638000,-161.63868993,0.00010612,2]
[422161808,1778640638000,-560.5226293,0.00010957,2]
[422161810,1778640638000,-1685.62210359,0.00010957,2]
[422161812,1778640638000,-1685.62210359,0.00010957,2]
[422161825,1778640638000,-1685.62210359,0.00010957,2]
[422161827,1778640638000,-1685.62210359,0.00010957,2]
[422161829,1778640638000,-1685.62210359,0.00010957,2]
[422161833,1778640638000,-1685.62210359,0.00010957,2]
[422161831,1778640638000,-1685.62210359,0.00010957,2]
[422161836,1778640638000,-1685.62210359,0.00010957,2]
[422161837,1778640638000,-1685.62210359,0.00010957,2]
[422161840,1778640638000,-1685.62210359,0.00010957,2]
[422161850,1778640638000,-1685.62210359,0.00010957,2]
[422161842,1778640638000,-1685.62210359,0.00010957,2]
[422161848,1778640638000,-1685.62210359,0.00010957,2]
[422161846,1778640638000,-1685.62210359,0.00010957,2]
[422161854,1778640638000,-1769.90320876,0.00010957,2]
[422161852,1778640638000,-1685.62210359,0.00010957,2]
[422161858,1778640638000,-1769.90320876,0.00010957,2]
[422161862,1778640638000,-1769.90320876,0.00010957,2]
[422161856,1778640638000,-1769.90320876,0.00010957,2]
[422161860,1778640638000,-1769.90320876,0.00010957,2]
[422161771,1778640638000,-152.0,0.00010651,7]
[422161863,1778640638000,-1769.90320876,0.00010957,2]
[422161823,1778640638000,-1685.62210359,0.00010957,2]
[422161806,1778640638000,-173.9994164,0.00010956,2]
[422161843,1778640638000,-1685.62210359,0.00010957,2]
[422161819,1778640638000,-1685.62210359,0.00010957,2]
[422161760,1778640638000,-160.0,0.00010612,2]
[422161756,1778640638000,-174.61456832,0.000106,2]
[422161821,1778640638000,-1685.62210359,0.00010957,2]
[422161758,1778640638000,-500.0,0.00010612,2]
[422161777,1778640638000,-648.142,0.00010677,2]
[422161773,1778640638000,-1088.89947993,0.00010664,21]
[422161775,1778640638000,-2218.946,0.00010677,2]
[422161789,1778640638000,-152.0,0.00010846,2]
[422161784,1778640638000,-607.85254285,0.00010739,2]
[422161796,1778640638000,-152.0,0.00010887,2]
[422161780,1778640638000,-174.61456832,0.000107,2]
[422161787,1778640638000,-174.61456832,0.000108,2]
[422161791,1778640638000,-152.0,0.00010846,2]
[422161802,1778640638000,-152.0,0.00010901,2]
[422161782,1778640638000,-3250.08241252,0.00010729,21]
[422161814,1778640638000,-1685.62210359,0.00010957,2]
[422161804,1778640638000,-2156.7295867,0.00010956,2]
[422161800,1778640638000,-174.61456832,0.000109,2]
[422161798,1778640638000,-3054.92709968,0.000109,2]
[422161817,1778640638000,-1685.62210359,0.00010957,2]
[422161793,1778640638000,-169.86349974,0.00010859,2]
[422161786,1778640638000,-3054.92709968,0.000108,2]
[422161794,1778640638000,-500.0,0.00010886,2]
[422161778,1778640638000,-3054.92709968,0.000107,2]
[422161816,1778640638000,-1685.62210359,0.00010957,2]
[422161950,1778640639000,-764.64,0.00010958,2]
[422161954,1778640639000,-500.0,0.00010958,2]
[422161942,1778640639000,-500.0,0.00010958,2]
[422161939,1778640639000,-500.0,0.00010958,2]
[422161944,1778640639000,-500.0,0.00010958,2]
[422161937,1778640639000,-500.0,0.00010958,2]
[422161948,1778640639000,-807.42,0.00010958,2]
[422161940,1778640639000,-500.0,0.00010958,2]
[422161935,1778640639000,-2718.98,0.00010958,2]
[422161946,1778640639000,-683.44567038,0.00010958,2]
[422161956,1778640639000,-1392.02,0.00010958,2]
[422161952,1778640639000,-611.24,0.00010958,2]
[422161958,1778640639000,-1085.42,0.00010958,2]
[422161964,1778640639000,-500.0,0.00010958,2]
[422161981,1778640639000,-500.0,0.00010958,2]
[422161966,1778640639000,-500.0,0.00010958,2]
[422161968,1778640639000,-500.0,0.00010958,2]
[422161976,1778640639000,-500.0,0.00010958,2]
[422161974,1778640639000,-2830.58,0.00010958,2]
[422161960,1778640639000,-807.66,0.00010958,2]
[422161978,1778640639000,-633.62,0.00010958,2]
[422161972,1778640639000,-599.31,0.00010958,2]
[422161970,1778640639000,-500.0,0.00010958,2]
[422161980,1778640639000,-883.54,0.00010958,2]
[422161983,1778640639000,-1338.45,0.00010958,2]
[422161985,1778640639000,-500.0,0.00010958,2]
[422161933,1778640639000,-489.40816884,0.00010958,2]
[422161998,1778640639000,-500.0,0.00010958,2]
[422161962,1778640639000,-500.0,0.00010958,2]
[422161929,1778640639000,-500.0,0.00010958,2]
[422161882,1778640639000,-500.0,0.00010958,2]
[422161925,1778640639000,-500.0,0.00010958,2]
[422162004,1778640639000,-500.0,0.00010958,2]
[422161867,1778640639000,-1769.90320876,0.00010957,2]
[422161873,1778640639000,-500.0,0.00010958,2]
[422161877,1778640639000,-507.83,0.00010958,2]
[422161869,1778640639000,-500.0,0.00010958,2]
[422161871,1778640639000,-4092.6181,0.00010958,2]
[422161875,1778640639000,-1348.69,0.00010958,2]
[422161879,1778640639000,-500.0,0.00010958,2]
[422161895,1778640639000,-500.0,0.00010958,2]
[422161883,1778640639000,-500.0,0.00010958,2]
[422161899,1778640639000,-500.0,0.00010958,2]
[422161897,1778640639000,-500.0,0.00010958,2]
[422161886,1778640639000,-500.0,0.00010958,2]
[422161901,1778640639000,-500.0,0.00010958,2]
[422161931,1778640639000,-500.0,0.00010958,2]
[422161887,1778640639000,-1212.33,0.00010958,2]
[422161893,1778640639000,-342.90361448,0.00010958,2]
[422161891,1778640639000,-500.0,0.00010958,2]
[422161903,1778640639000,-1326.89,0.00010958,2]
[422161907,1778640639000,-447.70519607,0.00010958,2]
[422161905,1778640639000,-500.0,0.00010958,2]
[422161911,1778640639000,-500.0,0.00010958,2]
[422161913,1778640639000,-1586.46,0.00010958,2]
[422161915,1778640639000,-500.0,0.00010958,2]
[422161919,1778640639000,-787.49,0.00010958,2]
[422161917,1778640639000,-500.0,0.00010958,2]
[422161909,1778640639000,-500.0,0.00010958,2]
[422161921,1778640639000,-832.8,0.00010958,2]
[422161923,1778640639000,-500.0,0.00010958,2]
[422161927,1778640639000,-500.0,0.00010958,2]
[422161890,1778640639000,-500.0,0.00010958,2]
[422162002,1778640639000,-495.03213175,0.00010958,2]
[422162031,1778640639000,-1495.05,0.00010958,2]
[422161992,1778640639000,-500.0,0.00010958,2]
[422162078,1778640639000,-2897.7,0.00010958,2]
[422162080,1778640639000,-500.0,0.00010958,2]
[422162067,1778640639000,-723.72,0.00010958,2]
[422162082,1778640639000,-1009.07,0.00010958,2]
[422162084,1778640639000,-2582.07,0.00010958,2]
[422162072,1778640639000,-500.0,0.00010958,2]
[422162069,1778640639000,-2250.34,0.00010958,2]
[422162071,1778640639000,-7384.37,0.00010958,2]
[422162086,1778640639000,-500.0,0.00010958,2]
[422162088,1778640639000,-7843.79,0.00010958,2]
[422162103,1778640639000,-500.0,0.00010958,2]
[422162114,1778640639000,-500.0,0.00010958,2]
[422162097,1778640639000,-500.0,0.00010958,2]
[422162112,1778640639000,-1244.94,0.00010958,2]
[422162096,1778640639000,-2028.1,0.00010958,2]
[422162099,1778640639000,-500.0,0.00010958,2]
[422162110,1778640639000,-5729.82,0.00010958,2]
[422162107,1778640639000,-1672.51,0.00010958,2]
[422162094,1778640639000,-6338.8,0.00010958,2]
[422162090,1778640639000,-500.0,0.00010958,2]
[422162105,1778640639000,-968.17,0.00010958,2]
[422162101,1778640639000,-1861.97,0.00010958,2]
[422162092,1778640639000,-2888.14,0.00010958,2]
[422162108,1778640639000,-500.0,0.00010958,2]
[422162118,1778640639000,-500.0,0.00010958,2]
[422162120,1778640639000,-1557.39,0.00010958,2]
[422162116,1778640639000,-500.0,0.00010958,2]
[422162121,1778640639000,-500.0,0.00010958,2]
[422162000,1778640639000,-789.22,0.00010958,2]
[422162076,1778640639000,-1344.16,0.00010958,2]
[422162074,1778640639000,-2397.05,0.00010958,2]
[422162035,1778640639000,-611.59,0.00010958,2]
[422162046,1778640639000,-2346.54,0.00010958,2]
[422162065,1778640639000,-500.0,0.00010958,2]
[422161994,1778640639000,-452.204,0.00010958,2]
[422161996,1778640639000,-1140.87,0.00010958,2]
[422162006,1778640639000,-2824.31,0.00010958,2]
[422162008,1778640639000,-500.0,0.00010958,2]
[422162010,1778640639000,-996.11,0.00010958,2]
[422162021,1778640639000,-500.0,0.00010958,2]
[422162023,1778640639000,-2975.53,0.00010958,2]
[422162016,1778640639000,-500.0,0.00010958,2]
[422162027,1778640639000,-500.0,0.00010958,2]
[422162012,1778640639000,-500.0,0.00010958,2]
[422162025,1778640639000,-500.0,0.00010958,2]
[422162018,1778640639000,-624.14,0.00010958,2]
[422162019,1778640639000,-866.38,0.00010958,2]
[422162014,1778640639000,-2847.5,0.00010958,2]
[422162039,1778640639000,-4977.6,0.00010958,2]
[422162033,1778640639000,-500.0,0.00010958,2]
[422162037,1778640639000,-183.10118179,0.00010958,2]
[422162049,1778640639000,-500.0,0.00010958,2]
[422162051,1778640639000,-577.09,0.00010958,2]
[422162041,1778640639000,-3032.72,0.00010958,2]
[422162053,1778640639000,-1500.52,0.00010958,2]
[422162063,1778640639000,-500.0,0.00010958,2]
[422162061,1778640639000,-500.0,0.00010958,2]
[422162055,1778640639000,-500.0,0.00010958,2]
[422162044,1778640639000,-1247.98,0.00010958,2]
[422162057,1778640639000,-500.0,0.00010958,2]
[422162048,1778640639000,-794.17,0.00010958,2]
[422162059,1778640639000,-500.0,0.00010958,2]
[422162029,1778640639000,-3425.24,0.00010958,2]
[422162188,1778640640000,-500.0,0.00010958,2]
[422162178,1778640640000,-500.0,0.00010958,2]
[422162160,1778640640000,-1024.35,0.00010958,2]
[422162184,1778640640000,-661.71,0.00010958,2]
[422162158,1778640640000,-3827.63,0.00010958,2]
[422162163,1778640640000,-2430.73,0.00010958,2]
[422162176,1778640640000,-500.0,0.00010958,2]
[422162180,1778640640000,-2369.99,0.00010958,2]
[422162173,1778640640000,-5893.84,0.00010958,2]
[422162186,1778640640000,-500.0,0.00010958,2]
[422162165,1778640640000,-2098.23,0.00010958,2]
[422162171,1778640640000,-528.72,0.00010958,2]
[422162182,1778640640000,-500.0,0.00010958,2]
[422162162,1778640640000,-500.0,0.00010958,2]
[422162167,1778640640000,-897.23,0.00010958,2]
[422162141,1778640640000,-500.0,0.00010958,2]
[422162127,1778640640000,-3977.75,0.00010958,2]
[422162145,1778640640000,-939.87,0.00010958,2]
[422162129,1778640640000,-500.0,0.00010958,2]
[422162137,1778640640000,-500.0,0.00010958,2]
[422162125,1778640640000,-5881.25,0.00010958,2]
[422162169,1778640640000,-500.0,0.00010958,2]
[422162123,1778640640000,-2443.38,0.00010958,2]
[422162133,1778640640000,-1970.64,0.00010958,2]
[422162131,1778640640000,-500.0,0.00010958,2]
[422162135,1778640640000,-1474.94,0.00010958,2]
[422162154,1778640640000,-8083.07,0.00010958,2]
[422162152,1778640640000,-1635.04,0.00010958,2]
[422162143,1778640640000,-1630.25,0.00010958,2]
[422162148,1778640640000,-3270.2,0.00010958,2]
[422162150,1778640640000,-631.69,0.00010958,2]
[422162147,1778640640000,-27630.82,0.00010958,2]
[422162156,1778640640000,-666.95,0.00010958,2]
[422162139,1778640640000,-939.97,0.00010958,2]
[422162174,1778640640000,-6269.35,0.00010958,2]
[422162193,1778640640000,-224.491518,0.00010959,2]
[422162203,1778640640000,-224.491518,0.00010959,2]
[422162232,1778640640000,-9999.99,0.00010959,2]
[422162223,1778640640000,-224.491518,0.00010959,2]
[422162215,1778640640000,-224.491518,0.00010959,2]
[422162225,1778640640000,-224.491517,0.00010959,2]
[422162238,1778640640000,-9999.99,0.00010959,2]
[422162240,1778640640000,-9999.99,0.00010959,2]
[422162189,1778640640000,-1562.0,0.00010959,2]
[422162220,1778640640000,-224.491518,0.00010959,2]
[422162242,1778640640000,-9999.99,0.00010959,2]
[422162253,1778640640000,-6614.44187794,0.00010959,2]
[422162246,1778640640000,-9999.99,0.00010959,2]
[422162250,1778640640000,-9999.99,0.00010959,2]
[422162248,1778640640000,-9999.99,0.00010959,2]
[422162283,1778640640000,-322.65030477,0.00010959,2]
[422162234,1778640640000,-9999.99,0.00010959,2]
[422162229,1778640640000,-9999.99,0.00010959,2]
[422162230,1778640640000,-9999.99,0.00010959,2]
[422162227,1778640640000,-151.213093,0.00010959,2]
[422162204,1778640640000,-224.491518,0.00010959,2]
[422162205,1778640640000,-224.491518,0.00010959,2]
[422162206,1778640640000,-224.491518,0.00010959,2]
[422162209,1778640640000,-224.491518,0.00010959,2]
[422162207,1778640640000,-224.491518,0.00010959,2]
[422162236,1778640640000,-9999.99,0.00010959,2]
[422162213,1778640640000,-224.491518,0.00010959,2]
[422162191,1778640640000,-224.491518,0.00010959,2]
[422162199,1778640640000,-224.491518,0.00010959,2]
[422162195,1778640640000,-224.491518,0.00010959,2]
[422162197,1778640640000,-224.491518,0.00010959,2]
[422162201,1778640640000,-224.491518,0.00010959,2]
[422162219,1778640640000,-224.491518,0.00010959,2]
[422162217,1778640640000,-224.491518,0.00010959,2]
[422162211,1778640640000,-224.491518,0.00010959,2]
[422162244,1778640640000,-9999.99,0.00010959,2]
[422162608,1778640643000,-208.62346375,0.00010958,2]
[422162609,1778640643000,-2709.41425479,0.00010959,2]
[422162611,1778640643000,-353.4835625,0.00010959,2]
[422162604,1778640643000,-405.23502857,0.00010739,2]
[422162606,1778640643000,-627.99079153,0.00010958,2]
[422162613,1778640643000,-3527.73945295,0.00010959,2]
[422162802,1778640644000,10000.0,0.00014,30]
[422163031,1778640646000,-5274.41600188,0.00010959,2]
[422163040,1778640646000,-360.69996,0.00010959,2]
[422163029,1778640646000,-9999.99,0.00010959,2]
[422163027,1778640646000,-9999.99,0.00010959,2]
[422163025,1778640646000,-9999.99,0.00010959,2]
[422163020,1778640646000,-270.15668571,0.00010958,2]
[422163023,1778640646000,-6472.25054705,0.00010959,2]
[422163021,1778640646000,-6429.4,0.00010958,2]
[422163772,1778640653000,10000.0,0.00014,30]
[422163799,1778640686000,10000.0,0.00014,30]
[422163800,1778640692000,10000.0,0.00014,30]
[422163801,1778640698000,10000.0,0.00014,30]
[422163802,1778640705000,10000.0,0.00014,30]
[422163803,1778640714000,5000.0,0.00014,30]
[422163805,1778640793000,3000.0,0.00014,30]
[422163878,1778641832000,-500.0,7.599e-05,2]
[422163867,1778641832000,-1875.57172218,7.3e-05,2]
[422163868,1778641832000,-260.4522574,7.3e-05,2]
[422163880,1778641832000,-500.0,7.599e-05,2]
[422163869,1778641832000,-2713.57461925,7.3e-05,2]
[422163870,1778641832000,-176.02219352,7.374e-05,2]
[422163873,1778641832000,-1200.0,7.598e-05,2]
[422163872,1778641832000,-300.0,7.598e-05,2]
[422163874,1778641832000,-500.0,7.599e-05,2]
[422163871,1778641832000,-300.0,7.598e-05,2]
[422163893,1778641832000,-67.31815684,7.599e-05,2]
[422163886,1778641832000,-500.0,7.599e-05,2]
[422163884,1778641832000,-500.0,7.599e-05,2]
[422163891,1778641832000,-500.0,7.599e-05,2]
[422163882,1778641832000,-500.0,7.599e-05,2]
[422163876,1778641832000,-408.87857104,7.599e-05,2]
[422163888,1778641832000,-500.0,7.599e-05,2]
[422163967,1778641838000,-300.0,7.751e-05,2]
[422163959,1778641838000,-300.0,7.751e-05,2]
[422163961,1778641838000,-300.0,7.751e-05,2]
[422163954,1778641838000,-500.0,7.599e-05,2]
[422163958,1778641838000,-123610.33272049,7.6e-05,2]
[422163965,1778641838000,-300.0,7.751e-05,2]
[422163956,1778641838000,-500.0,7.599e-05,2]
[422163969,1778641838000,-300.0,7.751e-05,2]
[422163980,1778641838000,-300.0,7.751e-05,2]
[422163983,1778641838000,-300.0,7.751e-05,2]
[422163973,1778641838000,-300.0,7.751e-05,2]
[422163976,1778641838000,-300.0,7.751e-05,2]
[422163984,1778641838000,-300.0,7.751e-05,2]
[422163975,1778641838000,-300.0,7.751e-05,2]
[422163971,1778641838000,-300.0,7.751e-05,2]
[422163986,1778641838000,-300.0,7.751e-05,2]
[422163988,1778641838000,-600.0,7.751e-05,2]
[422163990,1778641838000,-163.22827482,7.751e-05,2]
[422163952,1778641838000,-500.0,7.599e-05,2]
[422163979,1778641838000,-300.0,7.751e-05,2]
[422163946,1778641838000,-500.0,7.599e-05,2]
[422163921,1778641838000,-500.0,7.599e-05,2]
[422163948,1778641838000,-500.0,7.599e-05,2]
[422163910,1778641838000,-414.71690632,7.337e-05,2]
[422163912,1778641838000,-432.68184316,7.599e-05,2]
[422163913,1778641838000,-500.0,7.599e-05,2]
[422163915,1778641838000,-500.0,7.599e-05,2]
[422164000,1778641838000,-163.2282748,9.355e-05,2]
[422163923,1778641838000,-500.0,7.599e-05,2]
[422163919,1778641838000,-500.0,7.599e-05,2]
[422163925,1778641838000,-500.0,7.599e-05,2]
[422163927,1778641838000,-500.0,7.599e-05,2]
[422163917,1778641838000,-500.0,7.599e-05,2]
[422163935,1778641838000,-500.0,7.599e-05,2]
[422163933,1778641838000,-590.41900197,7.599e-05,2]
[422163931,1778641838000,-500.0,7.599e-05,2]
[422163929,1778641838000,-500.0,7.599e-05,2]
[422163936,1778641838000,-500.0,7.599e-05,2]
[422163938,1778641838000,-500.0,7.599e-05,2]
[422163940,1778641838000,-500.0,7.599e-05,2]
[422163942,1778641838000,-500.0,7.599e-05,2]
[422163944,1778641838000,-235.78148818,7.599e-05,2]
[422163950,1778641838000,-500.0,7.599e-05,2]
[422163998,1778641838000,-489.36594946,9.337e-05,2]
[422163963,1778641838000,-300.0,7.751e-05,2]
[422164005,1778641838000,-13801.12651112,0.0001,2]
[422164048,1778641838000,-1479.59030609,0.00010178,2]
[422164054,1778641838000,-1479.59030609,0.00010178,2]
[422164056,1778641838000,-40894.23272385,0.00010179,2]
[422164046,1778641838000,-1479.59030609,0.00010178,2]
[422164058,1778641838000,-133933.58174592,0.00010279,2]
[422164062,1778641838000,-500.0,0.00010374,7]
[422164060,1778641838000,-1000.0,0.00010317,2]
[422164076,1778641838000,-444.481,0.00010677,2]
[422164078,1778641838000,-185.0,0.00010677,2]
[422164042,1778641838000,-1479.59030609,0.00010178,2]
[422164080,1778641838000,-194.23515034,0.00010684,2]
[422164064,1778641838000,-500.0,0.00010374,7]
[422164066,1778641838000,-638.47640025,0.00010374,7]
[422164074,1778641838000,-1414.699,0.00010677,2]
[422164070,1778641838000,-152.0,0.00010648,7]
[422164068,1778641838000,-151.0,0.00010409,2]
[422164072,1778641838000,-1061.39504194,0.0001066,2]
[422164085,1778641838000,-151.5,0.00010684,2]
[422164087,1778641838000,-294.23418037,0.00010684,2]
[422163994,1778641838000,-720.0,8.526e-05,2]
[422164083,1778641838000,-500.0,0.00010684,2]
[422164044,1778641838000,-1479.59030609,0.00010178,2]
[422164081,1778641838000,-500.0,0.00010684,2]
[422164050,1778641838000,-1479.59030609,0.00010178,2]
[422163992,1778641838000,-504.49414223,8.219e-05,2]
[422164051,1778641838000,-1479.59030609,0.00010178,2]
[422163996,1778641838000,-1511.8945265,9.123e-05,2]
[422164009,1778641838000,-2105.35719235,0.0001,2]
[422164003,1778641838000,-864.0,9.379e-05,2]
[422164026,1778641838000,-1479.59030609,0.00010178,2]
[422164015,1778641838000,-1479.59030609,0.00010178,2]
[422164013,1778641838000,-536.28542633,0.00010178,2]
[422164030,1778641838000,-1479.59030609,0.00010178,2]